Cogmind - Beta 14 @@@ ROGUE MODE // 2025.03.04 @ 02:37:36 Player: Cogchaaaan Result: Destroyed by S-27 Virus with Autogun Performance ------------- Evolutions (5) 2500 Regions Visited (16) 3200 Robots Destroyed (162) 810 Value Destroyed (6048) 6048 Prototype IDs (40) 800 Alien Tech Used (0) 0 Bonus (3984) 3984 TOTAL SCORE: 17342 Bonus ------- High Alert Combat Kills 626 Follower Combat Kills 1759 Aligned with FarCom 300 Met Data Miner 300 Met Zhirov 300 Built Enhanced Grunts 300 Met R17 at Cetus 500 Friendly Fire -101 Cogmind --------- Core Integrity 0/1000 Matter 250/300 Energy 99/100 System Corruption 19% Temperature Cool (9) Movement Core (50) Location -5/Factory Parts ------- > --- POWER (2) -------- (None) > --- PROPULSION (4) --- (None) > --- UTILITY (8) ------ (None) > --- WEAPON (3) ------- (None) > --- INVENTORY (5) ---- Armored Medium Treads Compact Matter Pod (0) Improved Sensor Array Improved Hacking Suite Gauss Rifle Peak State ------------ > --- POWER ------------ Neutrino Core Quantum Reactor > --- PROPULSION ------- Centrium Heavy Treads Centrium Heavy Treads > --- UTILITY ---------- Advanced Heat Sink High-capacity Storage Unit Enhanced Optical Array Improved Signal Interpreter Advanced Targeting Computer Improved Target Analyzer Improved Propulsion Shielding Centrium Medium Armor Plating > --- WEAPON ----------- Heavy Machine Gun Advanced KE Penetrator Hypervelocity Gauss Cannon > --- INVENTORY -------- Neutrino Core Micro Fission Core Armored Medium Treads Centrium Heavy Treads Centrium Heavy Treads Improved Cooling System Energy Well Compact Matter Pod Improved Sensor Array Improved Propulsion Shielding Centrium Medium Armor Plating Centrium Medium Armor Plating Improved Hacking Suite Advanced Variable Charge Gun Phase Cannon Heavy Machine Gun Advanced KE Penetrator Proton Missile Launcher [Rating: 116] Favorites ----------- Power Improved Deuterium Engine Engine Improved Deuterium Engine Power Core Neutrino Core Reactor Quantum Reactor Propulsion Light Treads Treads Light Treads Leg Aluminum Leg Wheel Armored Huge Wheel Utility Advanced Targeting Computer Device Improved Heat Sink Storage High-capacity Storage Unit Processor Advanced Targeting Computer Protection Improved Medium Armor Plating Weapon Heavy Machine Gun Energy Gun Beam Rifle Energy Cannon Phase Cannon Ballistic Gun Heavy Machine Gun Ballistic Cannon Assault Cannon Launcher Proton Missile Launcher Special Weapon Mining Laser Slashing Weapon Katana Build | -11 -10 -10 -10 -9 -8 -7 -7 -7 -7 -6 -6 -6 -6 -6 -6 -5 ------- Run | Yrd Mat Min Exi Min Mat Fac Low Low Dat Pro Fac Ext Cet Arc Hub Fac Slots Evolved 10 | . . . . . 4 2 . . . . 2 . . . . 2 Power 1 | . . . . . . . . . . . 1 . . . . . Propulsion 2 | . . . . . 1 . . . . . 1 . . . . . Utility 6 | . . . . . 2 2 . . . . . . . . . 2 Weapon 1 | . . . . . 1 . . . . . . . . . . . Parts Attached 165 | 7 7 2 . 6 23 28 3 4 3 20 5 17 10 . 4 26 Power 16 | 1 . . . 1 1 2 . . . 1 3 2 1 . . 4 Engine 8 | 1 . . . 1 1 2 . . . 1 . 2 . . . . Core 6 | . . . . . . . . . . . 3 . . . . 3 Reactor 2 | . . . . . . . . . . . . . 1 . . 1 Propulsion 24 | 2 3 . . 2 3 3 . . . 2 1 3 3 . . 2 Treads 20 | . 3 . . 2 3 3 . . . 2 . 3 2 . . 2 Leg 2 | 2 . . . . . . . . . . . . . . . . Wheel 2 | . . . . . . . . . . . 1 . 1 . . . Hover . | . . . . . . . . . . . . . . . . . Flight . | . . . . . . . . . . . . . . . . . Utility 55 | 2 3 2 . 1 7 9 2 . . 12 1 4 2 . 1 9 Device 25 | 1 2 2 . . 3 2 1 . . 8 1 2 1 . . 2 Storage 4 | 1 1 . . . 1 1 . . . . . . . . . . Processor 4 | . . . . . . 1 1 . . . . . . . . 2 Hackware . | . . . . . . . . . . . . . . . . . Protection 22 | . . . . 1 3 5 . . . 4 . 2 1 . 1 5 Artifact . | . . . . . . . . . . . . . . . . . Weapon 70 | 2 1 . . 2 12 14 1 4 3 5 . 8 4 . 3 11 Energy Gun 22 | 1 1 . . 1 5 4 1 1 1 3 . 2 . . 1 1 Energy Cannon 2 | . . . . . . . . . . . . . . . . 2 Ballistic Gun 27 | 1 . . . 1 3 7 . . 1 2 . 3 3 . 1 5 Ballistic Cannon 6 | . . . . . . . . 1 1 . . 2 . . . 2 Launcher 4 | . . . . . 1 . . 1 . . . . 1 . . 1 Special Weapon 1 | . . . . . 1 . . . . . . . . . . . Impact Weapon . | . . . . . . . . . . . . . . . . . Slashing Weapon 8 | . . . . . 2 3 . 1 . . . 1 . . 1 . Piercing Weapon . | . . . . . . . . . . . . . . . . . Special Melee Weapon . | . . . . . . . . . . . . . . . . . Unidentified Prototypes 7 | . . . . . 1 1 . . . . . . 3 . 1 1 Corrupted Parts 4 | . . . . . . . . . . . . . 1 . . 3 System Corruption 13 | . . . . . . . . . . . . . 6 . . 7 Parts Lost 38 | . . . . . 1 . 1 . . 6 1 3 2 . . 24 Power 8 | . . . . . . . . . . 1 . 1 . . . 6 Propulsion 6 | . . . . . . . . . . 2 1 . 2 . . 1 Utility 11 | . . . . . . . . . . 1 . 1 . . . 9 Weapon 13 | . . . . . 1 . 1 . . 2 . 1 . . . 8 Highest Loss Streak 8 | . . . . . 1 . 1 . . 4 1 1 2 . . 8 To Critical Strikes . | . . . . . . . . . . . . . . . . . Average Slot Usage (%) 96 | . 100 100 100 100 95 99 100 100 79 99 92 98 92 86 86 81 Engine 8 | . 14 14 14 14 9 7 7 7 7 7 1 8 7 6 6 . Core 1 | . . . . . . . . . . . 11 4 . . . 5 Treads 22 | . 22 28 28 28 25 23 23 23 23 22 16 24 18 13 13 10 Device 12 | . 14 14 14 4 7 15 15 15 15 15 13 11 13 13 13 7 Storage 8 | . 14 14 14 14 9 7 7 7 7 7 6 6 6 6 6 4 Processor 8 | . . . . . . 7 15 15 15 15 13 13 13 13 13 20 Protection 8 | . . . . 9 17 14 7 7 7 6 6 7 6 6 6 7 Energy Gun 11 | . 18 28 28 16 8 6 9 8 1 11 13 9 1 . . . Ballistic Gun 10 | . 9 . . 11 17 14 12 7 . 8 6 8 17 20 19 10 Peak Build Rating 116 | 7 10 10 11 16 32 47 47 49 48 49 59 59 106 105 108 116 Average Rating 43 | 5 8 8 9 13 27 43 46 47 37 45 54 56 87 105 105 105 On Entrance 44 | . 7 8 8 11 16 32 46 47 48 48 46 59 59 105 105 108 Naked Turns 18 | . . . . . . . . . . . . . . . . 18 Heaviest Build 108 | 15 29 29 29 40 47 76 70 72 72 72 78 90 96 94 94 108 Greatest Support 160 | 20 40 40 40 43 65 65 62 62 62 62 62 85 160 160 160 160 Greatest Overweight (x) 4 | 4 . . . . 1 1 1 1 1 1 2 2 1 . . . Average Overweight (x) . | . . . . . . . 1 1 . . 1 . . . . . Largest Inventory Capacity 20 | 8 15 15 15 15 15 20 20 20 20 20 20 20 20 20 20 20 Average Capacity 17 | 7 8 15 15 15 15 16 20 20 20 20 20 20 20 20 20 19 Most Carried 20 | 4 9 12 14 15 15 20 20 20 20 20 20 20 20 20 20 20 Average Carried 15 | 2 7 9 12 14 14 15 19 20 20 16 17 19 19 20 20 16 Final Capacity 20 | 8 15 15 15 15 15 20 20 20 20 20 20 20 20 20 20 5 Final Carried 20 | 4 9 11 14 15 15 20 20 20 20 15 20 20 20 20 20 5 Class Distribution -------------------- 28% | Tank 18% | Scavenger-Mutant 18% | Skirmisher 14% | Scavenger-Skirmisher 10% | Mutant 5% | Scavenger-Tank 3% | Scavenger-Gunner Dominant Class ---------------- Mutant | -10/Materials Scavenger-Mutant | -10/Mines Scavenger-Mutant | -10/Exiles Mutant | -9/Mines Tank | -8/Materials Tank | -7/Factory Skirmisher | -7/Lower Caves Skirmisher | -7/Lower Caves Mutant | -7/Data Miner Skirmisher | -6/Proximity Caves Tank | -6/Factory Scavenger-Skirmisher | -6/Extension Scavenger-Skirmisher | -6/Cetus Scavenger-Skirmisher | -6/Archives Scavenger-Skirmisher | -6/Hub_04(d) Scavenger-Gunner | -5/Factory Resources | -11 -10 -10 -10 -9 -8 -7 -7 -7 -7 -6 -6 -6 -6 -6 -6 -5 ----------- Run | Yrd Mat Min Exi Min Mat Fac Low Low Dat Pro Fac Ext Cet Arc Hub Fac Matter Collected 4817 | 288 171 20 . 60 707 687 380 127 . 461 97 427 271 . 171 950 Remotely . | . . . . . . . . . . . . . . . . . Salvage Created 7010 | 111 612 48 . . 1194 831 163 237 . 356 195 756 257 . 318 1932 Parts 360 | 7 38 5 . . 80 39 8 9 . 17 8 31 15 . 11 92 Haulers Intercepted 4 | . 2 . . . . 1 . . . . . . . . . 1 Recyclers Shooed 13 | . 2 . . 1 2 . . . . . . . . . 2 6 Parts Field Recycled . | . . . . . . . . . . . . . . . . . Retrieved Matter . | . . . . . . . . . . . . . . . . . Parts Self-Destructed 28 | . . . . . . . 7 4 . 17 . . . . . . Prevented 5 | . . . . . . . . 5 . . . . . . . . Kills | -11 -10 -10 -10 -9 -8 -7 -7 -7 -7 -6 -6 -6 -6 -6 -6 -5 ------- Run | Yrd Mat Min Exi Min Mat Fac Low Low Dat Pro Fac Ext Cet Arc Hub Fac Combat Hostiles Destroyed 124 | . 15 3 . . 29 12 3 4 . 10 3 13 3 . 4 25 Guns 99 | . 15 3 . . 26 12 3 1 . 9 3 10 2 . 4 11 Cannons 14 | . . . . . . . . . . 1 . 2 . . . 11 AOE 9 | . . . . . 3 . . 3 . . . . . . . 3 Classes Destroyed 16 | 2 4 . . . 3 3 . 1 . 2 . 1 . . . . Worker 9 | . . . . . 2 . . . . . . . . . 1 6 Builder 2 | . . . . . . . . . . . . 1 . . . 1 Tunneler 3 | 1 . . . . 1 . . . . . . . . . . 1 Hauler 4 | . 2 . . . . 1 . . . . . . . . . 1 Recycler 10 | 1 . . . . 1 3 . . . . . . . . 1 4 Operator 1 | . . . . . 1 . . . . . . . . . . . Drone 2 | . . . . . . . . . . 2 . . . . . . Watcher 9 | . 2 . . . 3 1 . . . . . 2 1 . . . Swarmer 29 | . 6 3 . . 13 . . . . 3 . . . . . 4 Grunt 45 | . 9 . . . 9 2 3 3 . 2 3 3 . . 4 7 Brawler 1 | . . . . . . . . 1 . . . . . . . . Duelist 4 | . . . . . . 1 . . . 1 . . . . . 2 Sentry 18 | . . . . . 7 3 . . . 1 . 6 . . . 1 Hunter 8 | . . . . . . 2 . . . . . 2 . . . 4 Programmer 12 | . . . . . . 4 . . . . . 1 . . . 7 Behemoth 2 | . . . . . . . . . . 1 . 1 . . . . Cetus Guard 3 | . . . . . . . . . . . . . 3 . . . Best Kill Streak 12 | 1 3 3 . . 4 3 2 4 . 3 2 3 2 . 3 12 Combat Bots Only 8 | . 3 3 . . 4 3 2 4 . 3 2 3 2 . 2 8 Max Kills in Single Turn 3 | 1 1 2 . . 3 1 1 3 . 2 1 2 1 . 1 3 Gunslinging 1 | . . 1 . . . . . . . . . . . . . . Exploded 3 | . . . . . 3 . . 3 . . . . . . . 1 Melee . | . . . . . . . . . . . . . . . . . Uniques/NPCs Destroyed . | . . . . . . . . . . . . . . . . . Combat | -11 -10 -10 -10 -9 -8 -7 -7 -7 -7 -6 -6 -6 -6 -6 -6 -5 -------- Run | Yrd Mat Min Exi Min Mat Fac Low Low Dat Pro Fac Ext Cet Arc Hub Fac Hostile Shots Fired 941 | . 43 7 . . 84 90 31 1 . 78 27 96 28 . 43 413 Missed 290 | . 13 3 . . 25 26 6 . . 28 9 33 12 . 11 124 Damage Taken 11237 | . 430 31 . 11 785 607 420 16 . 977 258 726 375 . 474 6127 Core 1634 | . 96 6 . 11 92 45 61 . . 78 . 112 25 . 94 1014 Absorbed by Shields 508 | . . . . . . 69 . . . 53 94 108 125 . . 59 Redirected to Shielding 388 | . . . . . 24 17 . . . . . . . . . 347 Regen/Repaired (Parts) 19 | . . . . . . . . . . . . . . . . 19 Core Remaining (%) 76 | 100 . . . 54 83 . . . . 73 . . . . 72 . Volleys Fired 413 | 6 47 2 . . 77 40 12 14 . 27 12 45 13 . 18 100 Largest 3 | 2 2 2 . . 3 3 3 3 . 3 2 3 3 . 3 3 Hottest 240 | 70 90 90 . . 106 128 159 147 . 161 86 168 123 . 240 177 Shots Fired 1020 | 12 94 4 . . 209 119 33 18 . 72 24 129 29 . 39 238 Gun 865 | 12 94 4 . . 207 119 33 4 . 65 24 110 26 . 39 128 Cannon 144 | . . . . . . . . 11 . 7 . 19 . . . 107 Launcher 10 | . . . . . 1 . . 3 . . . . 3 . . 3 Special 1 | . . . . . 1 . . . . . . . . . . . Kinetic 629 | 6 35 . . . 133 79 19 13 . 37 12 77 21 . 32 165 Thermal 381 | 6 59 4 . . 75 40 14 2 . 35 12 52 5 . 7 70 Explosive 1 | . . . . . 1 . . . . . . . . . . . Electromagnetic 9 | . . . . . . . . 3 . . . . 3 . . 3 Robot Hit Streak 31 | 3 10 6 . . 13 14 7 5 . 25 9 14 18 . 31 19 Robot Miss Streak 6 | 3 2 . . . 5 6 2 3 . 3 2 4 1 . 2 5 Penetration Max 1 | . . . . . . . . . . . . . . . 1 1 Secondary Targets 13 | . . 1 . . 5 1 1 . . 1 . 1 2 . 1 . Max Gunslinging Chain 1 | . . 1 . . 1 1 1 . . 1 . 1 1 . 1 . Shots Hit Robots 683 | 7 62 3 . . 136 76 26 7 . 60 18 89 24 . 26 149 Core Hits 387 | 3 31 3 . . 65 59 17 7 . 37 10 57 14 . 15 69 Critical Kills 10 | . . . . . 1 . . . . . . . . . 1 8 Critical Parts Destroyed 18 | . . . . . . . . . . . . 4 1 . 1 12 Critical Strikes 51 | 1 3 . . . 6 2 . . . 4 . 5 1 . 2 27 Burn 14 | 1 3 . . . 5 2 . . . 2 . 1 . . . . Destroy 29 | . . . . . 1 . . . . 1 . 4 1 . 2 20 Blast 8 | . . . . . . . . . . 1 . . . . . 7 Melee Attacks 15 | . . . . . 2 6 . 5 . . . 1 . . 1 . Impact . | . . . . . . . . . . . . . . . . . Slashing 15 | . . . . . 2 6 . 5 . . . 1 . . 1 . Piercing . | . . . . . . . . . . . . . . . . . Sneak Attacks . | . . . . . . . . . . . . . . . . . Combat Hostiles . | . . . . . . . . . . . . . . . . . Follow-up Attacks . | . . . . . . . . . . . . . . . . . Damage Inflicted 16580 | 87 839 39 . 14 2378 1392 506 269 . 1121 390 2219 851 . 782 5693 Guns 11892 | 87 799 35 . . 2145 1392 506 35 . 962 385 1735 530 . 740 2541 Cannons 2982 | . . . . . . . . . . 159 . 472 . . . 2351 Explosions 1506 | . 30 . . . 201 . . 234 . . . . 321 . . 720 Melee . | . . . . . . . . . . . . . . . . . Ramming 200 | . 10 4 . 14 32 . . . . . 5 12 . . 42 81 Kinetic 9729 | 62 266 . . . 1407 820 239 23 . 646 255 1414 448 . 740 3409 Thermal 5763 | 25 533 35 . . 738 572 267 12 . 475 130 793 119 . . 2064 Explosive 263 | . 30 . . . 201 . . . . . . . . . . 32 Electromagnetic 625 | . . . . . . . . 234 . . . . 284 . . 107 Impact . | . . . . . . . . . . . . . . . . . Slashing . | . . . . . . . . . . . . . . . . . Piercing . | . . . . . . . . . . . . . . . . . Highest Corruption 19 | . . . . . . 8 5 5 5 5 . . 6 6 6 19 Average Corruption 5 | . . . . . . 5 5 5 5 5 . . 6 6 6 7 Corruption Purged 5 | . . . . . . 5 . . . . . . . . . . Corruption Blocked . | . . . . . . . . . . . . . . . . . Effects 194 | . . . . . . 63 26 25 6 25 . . 1 2 17 29 Message Errors 47 | . . . . . . 16 5 8 1 5 . . 1 1 4 6 Matter Fused 49 | . . . . . . 21 8 4 2 6 . . . 1 1 6 Heat Flow Errors 25 | . . . . . . 8 3 4 . 4 . . . . 5 1 Energy Discharges 24 | . . . . . . 7 5 3 1 1 . . . . 5 2 Parts Rejected 3 | . . . . . . . . . . 1 . . . . . 2 Parts Fused 2 | . . . . . . . 1 . 1 . . . . . . . Data Loss (minor) 19 | . . . . . . 6 2 2 1 3 . . . . . 5 Data Loss (major) 7 | . . . . . . 1 1 3 . 1 . . . . 1 . Misfires 7 | . . . . . . 1 1 . . 2 . . . . . 3 Alerts 4 | . . . . . . 1 . 1 . 1 . . . . . 1 Misdirections 1 | . . . . . . . . . . . . . . . . 1 Weapon Failures 6 | . . . . . . 2 . . . 1 . . . . 1 2 Overload Shots 5 | . . . . . . . . . . . . . . . 5 . Overflow Damage 229 | . . . . . . . . . . . . 9 . . 3 217 Projectiles 69 | . . . . . . . . . . . . 9 . . . 60 Explosions 157 | . . . . . . . . . . . . . . . . 157 Melee 3 | . . . . . . . . . . . . . . . 3 . Knockbacks 15 | . . . . . . . . . . . . . . . 1 14 Impact 2 | . . . . . . . . . . . . . . . 1 1 Kinetic 11 | . . . . . . . . . . . . . . . . 11 Secondary 2 | . . . . . . . . . . . . . . . . 2 Self-Inflicted Damage 202 | . 112 . . . . . . . . . 2 . . . . 88 Shots 3 | . 2 . . . . . . . . . . . . . . 1 Rammed 29 | . 2 2 . 2 6 . . . . . 1 1 . . 5 10 Targets Rammed 30 | . 2 2 . 2 6 . . . . . 1 1 . . 6 10 Kicked . | . . . . . . . . . . . . . . . . . Crushed 1 | . . . . . . . . . . . . . . . 1 . Highest Temperature 439 | 36 102 . . . 135 218 351 196 . 238 44 439 . . 384 349 Average Temperature 66 | 16 18 . . . 24 40 153 68 . 54 15 127 . . 151 94 Received Heat Transfer 2599 | . 144 . . 6 369 126 225 9 . 216 108 166 . . 162 1068 Effects 2 | . . . . . . . . . . . . 1 . . 1 . Shutdowns 1 | . . . . . . . . . . . . 1 . . . . Energy Bleed 1 | . . . . . . . . . . . . . . . 1 . Siege Activations . | . . . . . . . . . . . . . . . . . Robots Corrupted 1 | . . . . . . . . . . . . . 1 . . . Combat Hostiles 1 | . . . . . . . . . . . . . 1 . . . Parts Fried 3 | . . . . . . . . . . . . 3 . . . . Impact Corruptions 1 | . . . . . . . . . . . . . . . 1 . Robots Melted 1 | . . . . . . . . . . . . 1 . . . . Combat Hostiles 1 | . . . . . . . . . . . . 1 . . . . Parts Melted 13 | . 3 . . . 2 1 1 . . 2 . 3 . . . 1 Heat Transferred 10440 | 148 1729 99 . . 2257 841 350 10 . 962 333 1187 285 . . 2239 Parts Sabotaged . | . . . . . . . . . . . . . . . . . Parts Stolen . | . . . . . . . . . . . . . . . . . Parts Stripped . | . . . . . . . . . . . . . . . . . Power Chain Reactions 3 | . . . . . . . . . . . . . 1 . . 2 Alert | -11 -10 -10 -10 -9 -8 -7 -7 -7 -7 -6 -6 -6 -6 -6 -6 -5 ------- Run | Yrd Mat Min Exi Min Mat Fac Low Low Dat Pro Fac Ext Cet Arc Hub Fac Peak Influence 1219 | 10 275 70 . 44 365 184 . . . . 104 230 335 494 1160 1219 Initial 506 | . 6 56 . . . . . . . . 44 . 117 54 172 506 Average 163 | 2 115 22 . 13 119 69 . . . . 66 87 167 251 806 667 Maximum Alert Level 4 | . 1 . . . 1 . . . . . . 1 1 2 4 4 Low Security (%) 80 | 100 83 100 . 100 87 100 . . . . 100 80 89 53 8 . Level 1 6 | . 16 . . . 12 . . . . . . 19 10 6 2 5 Level 2 7 | . . . . . . . . . . . . . . 40 22 60 Level 3 4 | . . . . . . . . . . . . . . . 51 29 Level 4 1 | . . . . . . . . . . . . . . . 15 4 Level 5 . | . . . . . . . . . . . . . . . . . High Security . | . . . . . . . . . . . . . . . . . Max Security . | . . . . . . . . . . . . . . . . . Squads Dispatched 28 | . 3 . . . 1 6 . . . . . 2 . . 5 11 Investigation 5 | . 2 . . . . 2 . . . . . . . . 1 . Extermination 6 | . . . . . . 4 . . . . . . . . . 2 Reinforcement 12 | . 1 . . . 1 . . . . . . 2 . . 3 5 Assault 3 | . . . . . . . . . . . . . . . 1 2 Garrison 2 | . . . . . . . . . . . . . . . . 2 Intercept . | . . . . . . . . . . . . . . . . . Searches Triggered . | . . . . . . . . . . . . . . . . . Construction Impeded 5 | . . . . . . . . . . . . 2 . . 1 2 Haulers Reinforced 2 | . . . . . . . . . . . . . . . . 2 Active Scanning Responses . | . . . . . . . . . . . . . . . . . Cargo Convoy Interrupts . | . . . . . . . . . . . . . . . . . Stealth | -11 -10 -10 -10 -9 -8 -7 -7 -7 -7 -6 -6 -6 -6 -6 -6 -5 --------- Run | Yrd Mat Min Exi Min Mat Fac Low Low Dat Pro Fac Ext Cet Arc Hub Fac Distress Signals 13 | . 1 1 . . 4 1 . . . . . 1 2 . 2 1 Communications Jammed . | . . . . . . . . . . . . . . . . . Distress Signals . | . . . . . . . . . . . . . . . . . Times Spotted 211 | . 22 3 . 2 40 19 4 4 . 9 3 22 12 3 17 51 Peak Tracking Total 16 | . 4 3 . 2 5 3 3 4 . 3 3 3 5 7 5 16 Tactical Retreats 11 | . . . . . 2 . 2 . . 1 . . . . 3 3 Traps | -11 -10 -10 -10 -9 -8 -7 -7 -7 -7 -6 -6 -6 -6 -6 -6 -5 ------- Run | Yrd Mat Min Exi Min Mat Fac Low Low Dat Pro Fac Ext Cet Arc Hub Fac Traps Triggered 18 | . 2 . . . . 8 . . . . . 4 . . 2 2 Indirectly 1 | . . . . . . . . . . . . . . . . 1 Trap Hack Attempts . | . . . . . . . . . . . . . . . . . Triggered . | . . . . . . . . . . . . . . . . . Disarmed . | . . . . . . . . . . . . . . . . . Reprogrammed . | . . . . . . . . . . . . . . . . . Reused . | . . . . . . . . . . . . . . . . . Traps Extracted . | . . . . . . . . . . . . . . . . . Installed . | . . . . . . . . . . . . . . . . . Triggered . | . . . . . . . . . . . . . . . . . Machines | -11 -10 -10 -10 -9 -8 -7 -7 -7 -7 -6 -6 -6 -6 -6 -6 -5 ---------- Run | Yrd Mat Min Exi Min Mat Fac Low Low Dat Pro Fac Ext Cet Arc Hub Fac Machines Disabled 19 | . 2 . . . 2 . . . . . . . 1 1 2 11 Max in Single Turn 5 | . 2 . . . 1 . . . . . . . . . 1 5 Garrison Access 1 | . . . . . . 1 . . . . . . . . . . Machines Repaired . | . . . . . . . . . . . . . . . . . Machines Dismantled . | . . . . . . . . . . . . . . . . . Machines Sabotaged . | . . . . . . . . . . . . . . . . . Overloaded Fab Kills . | . . . . . . . . . . . . . . . . . Hacking | -11 -10 -10 -10 -9 -8 -7 -7 -7 -7 -6 -6 -6 -6 -6 -6 -5 --------- Run | Yrd Mat Min Exi Min Mat Fac Low Low Dat Pro Fac Ext Cet Arc Hub Fac Machines Accessed 50 | . 8 1 1 . 11 13 . . 4 1 . 4 . . . 7 Terminals 35 | . 6 1 . . 9 8 . . . 1 . 4 . . . 6 Fabricators 2 | . . . . . . 2 . . . . . . . . . . Repair Stations 2 | . 1 . . . . . . . . . . . . . . 1 Recycling Units 4 | . 1 . . . 2 1 . . . . . . . . . . Scanalyzers . | . . . . . . . . . . . . . . . . . Garrison Access 2 | . . . . . . 2 . . . . . . . . . . Total Hacks 119 | . 20 2 1 . 23 23 . . 30 1 . 5 . . . 14 Successful 74 | . 11 1 1 . 14 7 . . 30 1 . 1 . . . 8 Failed 45 | . 9 1 . . 9 16 . . . . . 4 . . . 6 Catastrophic 11 | . 1 . . . 2 6 . . . . . 2 . . . . Database Lockouts . | . . . . . . . . . . . . . . . . . Manual 46 | . 7 . 1 . 16 9 . . . . . 4 1 . . 8 Terminals 66 | . 14 2 . . 19 13 . . . 1 . 5 . . . 12 Fabricators 5 | . . . . . . 5 . . . . . . . . . . Repair Stations 5 | . 3 . . . . . . . . . . . . . . 2 Recycling Units 8 | . 3 . . . 4 1 . . . . . . . . . . Scanalyzers . | . . . . . . . . . . . . . . . . . Garrison Access 4 | . . . . . . 4 . . . . . . . . . . Terminal Hacks 49 | . 5 1 1 . 7 1 . . 30 1 . . . . . 3 Record 12 | . . . . . . . . . 11 1 . . . . . . Part Schematic 12 | . . . . . 1 . . . 11 . . . . . . . Robot Schematic 5 | . . . . . . . . . 5 . . . . . . . Prototype ID Bank 3 | . . . . . . . . . 3 . . . . . . . Level Access Points 1 | . . . . . . . . . . . . . . . . 1 Branch Access Points 2 | . . . . . 1 1 . . . . . . . . . . Emergency Access Points 1 | . 1 . . . . . . . . . . . . . . . Terminal Index 1 | . . . . . . . . . . . . . . . . 1 Unreport Threat 4 | . 1 . . . 3 . . . . . . . . . . . Locate Traps 3 | . 1 . . . 1 . . . . . . . . . . 1 Zone Layout 4 | . 2 1 . . 1 . . . . . . . . . . . Derelict Proto ID Bank 1 | . . . 1 . . . . . . . . . . . . . Fabricator Hacks 2 | . . . . . . 2 . . . . . . . . . . Load Schematic 1 | . . . . . . 1 . . . . . . . . . . Build 1 | . . . . . . 1 . . . . . . . . . . Repair Station Hacks 3 | . 1 . . . . . . . . . . . . . . 2 Scan Component 2 | . 1 . . . . . . . . . . . . . . 1 Repair 1 | . . . . . . . . . . . . . . . . 1 Recycling Unit Hacks 3 | . 1 . . . 2 . . . . . . . . . . . Retrieve Components 3 | . 1 . . . 2 . . . . . . . . . . . Scanalyzer . | . . . . . . . . . . . . . . . . . Garrison Access Hacks 1 | . . . . . . 1 . . . . . . . . . . Seal Access 1 | . . . . . . 1 . . . . . . . . . . Unauthorized Hacks 16 | . 4 . . . 5 3 . . . . . 1 . . . 3 Terminals 12 | . 2 . . . 3 3 . . . . . 1 . . . 3 Botnet 12 | . 2 . . . 3 3 . . . . . 1 . . . 3 Fabricators . | . . . . . . . . . . . . . . . . . Repair Stations . | . . . . . . . . . . . . . . . . . Recycling Units 4 | . 2 . . . 2 . . . . . . . . . . . Reject 2 | . 1 . . . 1 . . . . . . . . . . . Mask 2 | . 1 . . . 1 . . . . . . . . . . . Scanalyzers . | . . . . . . . . . . . . . . . . . Garrison Access . | . . . . . . . . . . . . . . . . . Data Cores Recovered . | . . . . . . . . . . . . . . . . . Used . | . . . . . . . . . . . . . . . . . Hacking Detections 37 | . 7 . . . 8 13 . . . . . 4 . . . 5 Full Trace Events 2 | . . . . . . 2 . . . . . . . . . . Feedback Events . | . . . . . . . . . . . . . . . . . Feedback Blocked . | . . . . . . . . . . . . . . . . . Robot Schematics Acquired 5 | . . . . . . . . . 5 . . . . . . . Robots Built . | . . . . . . . . . . . . . . . . . Authchips . | . . . . . . . . . . . . . . . . . Time . | . . . . . . . . . . . . . . . . . Total Robot Build Rating . | . . . . . . . . . . . . . . . . . Part Schematics Acquired 12 | . . . . . 1 . . . 11 . . . . . . . Parts Built 1 | . . . . . . 1 . . . . . . . . . . Authchips . | . . . . . . . . . . . . . . . . . Time 25 | . . . . . . 25 . . . . . . . . . . Total Part Build Rating 1 | . . . . . . 1 . . . . . . . . . . Parts Repaired 1 | . . . . . . . . . . . . . . . . 1 Time 19 | . . . . . . . . . . . . . . . . 19 Parts Recycled . | . . . . . . . . . . . . . . . . . Recycled Matter . | . . . . . . . . . . . . . . . . . Retrieved Matter . | . . . . . . . . . . . . . . . . . Retrieved Components 20 | . 9 . . . 11 . . . . . . . . . . . Parts Scanalyzed . | . . . . . . . . . . . . . . . . . Part Schematics Acquired . | . . . . . . . . . . . . . . . . . Parts Damaged . | . . . . . . . . . . . . . . . . . Bothacking | -11 -10 -10 -10 -9 -8 -7 -7 -7 -7 -6 -6 -6 -6 -6 -6 -5 ------------ Run | Yrd Mat Min Exi Min Mat Fac Low Low Dat Pro Fac Ext Cet Arc Hub Fac Used RIF Installer . | . . . . . . . . . . . . . . . . . Robots Hacked . | . . . . . . . . . . . . . . . . . Non-combat . | . . . . . . . . . . . . . . . . . Combat . | . . . . . . . . . . . . . . . . . Robot Hacks Applied . | . . . . . . . . . . . . . . . . . Relay Couplers Released . | . . . . . . . . . . . . . . . . . Fabnet Peak Effective % . | . . . . . . . . . . . . . . . . . Robots Rewired 7 | . . . . . . . . . . . . 7 . . . . Allies Hacked . | . . . . . . . . . . . . . . . . . Hacks Repelled . | . . . . . . . . . . . . . . . . . Allies | -11 -10 -10 -10 -9 -8 -7 -7 -7 -7 -6 -6 -6 -6 -6 -6 -5 -------- Run | Yrd Mat Min Exi Min Mat Fac Low Low Dat Pro Fac Ext Cet Arc Hub Fac Total Allies 22 | . . 3 . 2 . . . . . . . 12 5 . . . Largest Group 7 | . . 3 3 4 4 . . . . . . 5 7 6 5 . Highest-Rated Group 670 | . . 40 40 63 63 . . . . . . 291 670 574 415 . Highest-Rated Ally 159 | . . 16 16 31 31 . . . . . . 159 159 159 96 . Total Orders 2 | . . . . . . . . . . . . . . . 2 . STAY 2 | . . . . . . . . . . . . . . . 2 . Ally Attacks 259 | . . . . 11 11 . . . . . . 93 45 36 63 . Total Damage 6639 | . . . . 111 96 . . . . . . 1760 1123 1382 2167 . Kills 48 | . . . . 2 2 . . . . . . 8 6 10 20 . Allies Corrupted . | . . . . . . . . . . . . . . . . . Allies Melted 1 | . . . . . . . . . . . . 1 . . . . Intel | -11 -10 -10 -10 -9 -8 -7 -7 -7 -7 -6 -6 -6 -6 -6 -6 -5 ------- Run | Yrd Mat Min Exi Min Mat Fac Low Low Dat Pro Fac Ext Cet Arc Hub Fac Robot Analysis Total . | . . . . . . . . . . . . . . . . . Derelict Logs Recovered 5 | . . 2 . 1 . . 1 . . 1 . . . . . . Drone Launches . | . . . . . . . . . . . . . . . . . Drone Recoveries . | . . . . . . . . . . . . . . . . . Exploration | -11 -10 -10 -10 -9 -8 -7 -7 -7 -7 -6 -6 -6 -6 -6 -6 -5 ------------- Run | Yrd Mat Min Exi Min Mat Fac Low Low Dat Pro Fac Ext Cet Arc Hub Fac Turns Passed 16593 | 108 887 1935 348 902 1962 2894 1096 1078 169 1011 445 1446 447 79 500 1286 Spaces Moved 7574 | 55 456 645 212 539 982 1395 443 431 99 361 243 673 156 50 270 564 Core 46 | 22 . . . . . . . . . . . . . . . 24 Treads 7103 | . 336 645 212 539 982 1395 443 431 99 361 71 573 156 50 270 540 Legs 153 | 33 120 . . . . . . . . . . . . . . . Wheels 272 | . . . . . . . . . . . 172 100 . . . . Hover . | . . . . . . . . . . . . . . . . . Flight . | . . . . . . . . . . . . . . . . . Fastest Speed 50 | 50 120 160 160 160 155 155 238 238 158 158 130 130 155 160 160 50 Average Speed 174 | 131 149 160 160 160 163 171 238 238 166 238 161 163 162 160 160 155 Slowest Speed 250 | 250 160 160 160 160 240 245 238 238 238 243 238 240 232 160 160 160 Overloaded Moves . | . . . . . . . . . . . . . . . . . Propulsion Burnouts . | . . . . . . . . . . . . . . . . . Robots Hopped . | . . . . . . . . . . . . . . . . . Cave-ins Triggered . | . . . . . . . . . . . . . . . . . Exploration Rate (%) 56 | 4 91 97 60 89 82 42 58 53 70 56 6 88 59 63 32 18 Regions Visited 16 Branch Regions 11 Pre-discovered Areas 2 | . . . . 1 . . . . 1 . . . . . . . Known Exits Taken 10 | . . . . . . 1 1 1 1 1 1 1 1 1 1 . Unknown Exits Taken 6 | 1 1 1 1 1 1 . . . . . . . . . . . Scrap Searched 8 | . . 2 . 2 . . 1 1 . 2 . . . . . . Spaces Dug 25 | . . . . . 3 4 . 4 . . . 1 . . 7 6 Terrain Destroyed 237 | . 36 . . . 17 5 . 4 . . . 1 3 . 9 162 Melee 12 | . . . . . 2 4 . 4 . . . 1 . . 1 . Projectile 51 | . . . . . 1 1 . . . . . . 1 . 8 40 AOE 174 | . 36 . . . 14 . . . . . . . 2 . . 122 Terrain Rammed . | . . . . . . . . . . . . . . . . . Walls Destroyed . | . . . . . . . . . . . . . . . . . Machines Disabled . | . . . . . . . . . . . . . . . . . Actions | -11 -10 -10 -10 -9 -8 -7 -7 -7 -7 -6 -6 -6 -6 -6 -6 -5 --------- Run | Yrd Mat Min Exi Min Mat Fac Low Low Dat Pro Fac Ext Cet Arc Hub Fac Total 10086 | 76 568 1542 221 580 1176 1805 460 458 104 449 272 924 330 49 302 770 Wait 1566 | 3 36 888 9 20 60 312 . 5 . 36 . 17 130 . 2 48 Move 7558 | 54 455 644 211 538 981 1394 442 430 98 360 242 672 155 49 269 564 Hop . | . . . . . . . . . . . . . . . . . Pick Up 94 | 5 11 3 1 5 10 12 2 . . 4 9 13 9 . 1 9 Fast Attach 66 | 7 4 . . 5 11 18 . . 3 1 2 5 4 . 1 5 Attach 40 | . . . . 1 3 3 1 . . 7 2 4 2 . . 17 Detach 4 | . . . . . 1 . . . . . . . 1 . . 2 Swap 59 | . 3 2 . . 9 7 2 4 . 12 1 8 4 . 3 4 Drop 92 | 1 10 1 . 9 16 13 1 . 3 2 3 15 12 . 1 5 Fire 413 | 6 47 2 . . 77 40 12 14 . 27 12 45 13 . 18 100 Melee 15 | . . . . . 2 6 . 5 . . . 1 . . 1 . Ram 1 | . . . . . . . . . . . 1 . . . . . Kick . | . . . . . . . . . . . . . . . . . Crush 29 | . 2 2 . 2 6 . . . . . . 1 . . 6 10 Escape Stasis 16 | . . . . . . . . . . . . 10 . . . 6 Rewire 133 | . . . . . . . . . . . . 133 . . . . Trap . | . . . . . . . . . . . . . . . . . Miscellaneous . | . . . . . . . . . . . . . . . . . Route ------- -11/Scrapyard -10/Materials (discovered 4 exits: [*Mat x3] / *Min) -10/Mines (discovered 3 exits: [*Mat x2] / *Exi) -10/Exiles -9/Mines -8/Materials (discovered 3 exits: *Fac x3) -7/Factory (discovered 6 exits: *Fac x3 / Sto / *Low x2) -7/Lower Caves -7/Lower Caves -7/Data Miner -6/Proximity Caves -6/Factory (discovered 2 exits: *Low / *Ext) -6/Extension (discovered 2 exits: *Fac / *Cet) -6/Cetus (discovered 2 exits: *Fac / *Arc) -6/Archives -6/Hub_04(d) -5/Factory (discovered 4 exits: Fac x4) History --------- Turn | Location | Event 24 | -11/Scrapyard | Discovered new exit (range 16) 109 | -11/Scrapyard | Entered Materials 206 | -10/Materials | Discovered new exit (range 5) 314 | -10/Materials | Build established: Mutant 325 | -10/Materials | Discovered new exit (range 7) 434 | -10/Materials | Discovered new exit (range 15) 793 | -10/Materials | Discovered new exit (range 4) 996 | -10/Materials | Entered Mines 1009 | -10/Mines | Build established: Scavenger-Mutant 1116 | -10/Mines | Assembled infested the area 2109 | -10/Mines | Received a Rocket Launcher from a helpful Derelict 2153 | -10/Mines | Deemed a non-threat by the Exiles lab entrance 2154 | -10/Mines | Discovered new exit (range 5) 2334 | -10/Mines | Discovered new exit (range 15) 2340 | -10/Mines | Learned Materials emergency access door positions 2554 | -10/Mines | Assisted by bots powering up and referring to "LRC-V3" 2800 | -10/Mines | Discovered new exit (range 11) 2931 | -10/Mines | Entered Exiles 2931 | -10/Exiles | Accompanied by 3 allies 2975 | -10/Exiles | Met 8R-AWN 2997 | -10/Exiles | Met EX-HEX 3047 | -10/Exiles | Met EX-BIN 3064 | -10/Exiles | Aligned with FarCom system 3066 | -10/Exiles | Given EX-Vault access code 3103 | -10/Exiles | Opened EX-Vault 3112 | -10/Exiles | Found Lightpack 2.0 3147 | -10/Exiles | Warned to stay clear of 0b10 Research branches 3198 | -10/Exiles | Met EX-DEC 3252 | -10/Exiles | Discovered new exit (range 12) 3279 | -10/Exiles | Left Exiles lab with Lightpack 2.0 3279 | -10/Exiles | Entered Mines 3279 | -9/Mines | Accompanied by 3 allies 3488 | -9/Mines | Learned location of Storage (-7) 3493 | -9/Mines | Discovered new exit (range 10) 3849 | -9/Mines | Build established: Mutant 3916 | -9/Mines | Found DCF Scrap (12 items) 4181 | -9/Mines | Entered Materials 4181 | -8/Materials | Accompanied by 4 allies 4181 | -8/Materials | Evolved 4 slots: Propulsion x1, Utility x2, Weapon x1 4186 | -8/Materials | Led the pair of lost Derelicts to an unsafe place 4278 | -8/Materials | Lost 4 allies 4495 | -8/Materials | Discovered new exit (range 15) 4624 | -8/Materials | Build established: Tank 5067 | -8/Materials | Discovered new exit (range 16) 5108 | -8/Materials | Build established: Scavenger-Tank 5533 | -8/Materials | Build established: Tank 6022 | -8/Materials | Discovered new exit (range 5) 6143 | -8/Materials | Entered Factory 6143 | -7/Factory | Evolved 2 slots: Utility x2 6144 | -7/Factory | Identified exit to Storage 6892 | -7/Factory | Discovered new exit (range 15) 8337 | -7/Factory | Discovered new exit (range 8) 8359 | -7/Factory | Fabricated Hcp. Storage Unit (x1) 8560 | -7/Factory | Identified exit to Lower Caves 8901 | -7/Factory | Discovered new exit (range 4) 9037 | -7/Factory | Entered Lower Caves 9345 | -7/Lower Caves | Build established: Skirmisher 9896 | -7/Lower Caves | Learned Factory stockpile data 10007 | -7/Lower Caves | Discovered new exit (range 7) 10018 | -7/Lower Caves | Encountered a Warlord checkpoint 10049 | -7/Lower Caves | Identified exit to Lower Caves 10133 | -7/Lower Caves | Entered another Lower Caves area 11050 | -7/Lower Caves | Discovered new exit (range 8) 11209 | -7/Lower Caves | Identified exit to Data Miner 11211 | -7/Lower Caves | Entered Data Miner 11213 | -7/Data Miner | Discovered new exit (range 7) 11243 | -7/Data Miner | Met Data Miner 11276 | -7/Data Miner | Learned location of Section 7 (-2) 11276 | -7/Data Miner | Acquired the access code to Warlord's prototype stash 11308 | -7/Data Miner | Received God Mode back door access code from Data Miner 11378 | -7/Data Miner | Identified exit to Proximity Caves 11380 | -7/Data Miner | Entered Proximity Caves 11600 | -6/Proximity Caves | Spotted B-75 Beast 11637 | -6/Proximity Caves | Destroyed B-75 Beast 11655 | -6/Proximity Caves | Lost 4 parts (1p1n1u1w) 11830 | -6/Proximity Caves | Attracted the attention of an 0b10 checkpoint 12279 | -6/Proximity Caves | Discovered new exit (range 8) 12294 | -6/Proximity Caves | Identified exit to Factory 12320 | -6/Proximity Caves | Learned Factory trap positions 12391 | -6/Proximity Caves | Entered Factory 12391 | -6/Factory | Evolved 2 slots: Power x1, Propulsion x1 12392 | -6/Factory | Loaded intel: 109 trap records 12608 | -6/Factory | Discovered new exit (range 16) 12640 | -6/Factory | Identified exit to Lower Caves 12679 | -6/Factory | Discovered new exit (range 6) 12683 | -6/Factory | Build established: Tank 12835 | -6/Factory | Identified exit to Extension 12836 | -6/Factory | Entered Extension 12980 | -6/Extension | Rescued a captive Derelict 12982 | -6/Extension | Rescued a captive Derelict 13350 | -6/Extension | Rescued A7 13604 | -6/Extension | Build established: Scavenger-Skirmisher 13905 | -6/Extension | Spotted B-75 Beast 13913 | -6/Extension | Destroyed B-75 Beast 14087 | -6/Extension | Rescued a captive Derelict 14178 | -6/Extension | Rescued a captive Derelict 14233 | -6/Extension | Discovered new exit (range 10) 14234 | -6/Extension | Discovered new exit (range 6) 14246 | -6/Extension | Identified exit to Cetus 14251 | -6/Extension | Identified exit to Factory 14282 | -6/Extension | Entered Cetus 14282 | -6/Cetus | Accompanied by 5 allies (A7) 14287 | -6/Cetus | Acquired a Cetus Manufacturing Module code from A7 14303 | -6/Cetus | Spotted Cetus Guard 14303 | -6/Cetus | Spotted Cetus Guard 14307 | -6/Cetus | Spotted Cetus Guard 14309 | -6/Cetus | Spotted Cetus Guard 14313 | -6/Cetus | Allies destroyed Cetus Guard 14318 | -6/Cetus | Destroyed Cetus Guard 14327 | -6/Cetus | Destroyed Cetus Guard 14330 | -6/Cetus | Allies destroyed Cetus Guard 14353 | -6/Cetus | Lost 3 allies 14441 | -6/Cetus | Started Cetus Manufacturing Module 14466 | -6/Cetus | Manufactured an Enhanced Grunt 14491 | -6/Cetus | Manufactured an Enhanced Grunt 14516 | -6/Cetus | Manufactured an Enhanced Grunt 14541 | -6/Cetus | Manufactured an Enhanced Grunt 14566 | -6/Cetus | Manufactured an Enhanced Grunt 14601 | -6/Cetus | Discovered new exit (range 15) 14627 | -6/Cetus | Spotted Cetus Guard 14628 | -6/Cetus | Spotted Cetus Guard 14632 | -6/Cetus | Spotted Cetus Guard 14633 | -6/Cetus | Spotted Cetus Guard 14635 | -6/Cetus | Destroyed Cetus Guard 14637 | -6/Cetus | Allies destroyed Cetus Guard 14639 | -6/Cetus | Allies destroyed Cetus Guard 14642 | -6/Cetus | Allies destroyed Cetus Guard 14649 | -6/Cetus | Discovered exit to Factory (range 15) 14657 | -6/Cetus | Met Revision 17 14727 | -6/Cetus | Identified exit to Archives 14729 | -6/Cetus | Entered Archives 14729 | -6/Archives | Accompanied by 6 allies (A7) 14749 | -6/Archives | Met Zhirov 14755 | -6/Archives | Reinforcements dispatched to Archives 14765 | -6/Archives | Discovered new exit (range 15) 14787 | -6/Archives | Identified exit to Hub_04(d) 14800 | -6/Archives | Reinforcements dispatched to Archives 14808 | -6/Archives | Entered Hub_04(d) 14808 | -6/Hub_04(d) | Accompanied by 5 allies 14881 | -6/Hub_04(d) | Discovered exit to Factory (range 5) 15158 | -6/Hub_04(d) | First assault squad dispatched 15306 | -6/Hub_04(d) | Spotted B-75 Beast 15308 | -6/Hub_04(d) | Entered Factory 15308 | -5/Factory | Evolved 2 slots: Utility x2 15651 | -5/Factory | Repaired Imp. Sensor Array 15908 | -5/Factory | First assault squad dispatched 15986 | -5/Factory | Lost 3 parts (1u2w) 15990 | -5/Factory | Build established: Scavenger-Gunner 16141 | -5/Factory | Lost 3 parts (1u2w) 16178 | -5/Factory | Destroyed 8 combat bots 16214 | -5/Factory | Identified exit to Factory 16416 | -5/Factory | Garrison activated, responded to threat 16452 | -5/Factory | Lost 3 parts (2p1w) 16532 | -5/Factory | System corruption reached 10% 16573 | -5/Factory | Core integrity fell below 50% 16576 | -5/Factory | Released all parts (7) 16588 | -5/Factory | Core integrity fell below 20% 16594 | -5/Factory | Destroyed by S-27 Virus with Autogun Last Messages --------------- 16576_ Released Centrium Heavy Treads. 16576_ Released Enh. Optical Array. 16576_ Released Imp. Signal Interpreter. 16576_ Released Hcp. Storage Unit. 16576_ Released Imp. Target Analyzer. 16576_ Released Centrium Medium Armor Plating. 16577_ Slug penetrates Wall. 16577_ Penetrated by Slug. 16586_ Triggered Stasis Trap. 16586_ A bubble of rippling energy engulfs the area. 16586_ Field strength at 94. 16586_ Field strength at 88. 16587_ Field strength at 68. 16588_ Field strength at 57. 16589_ Field strength at 37. 16590_ GIC5YGKM14KQ/53&PNOW&XKZ:OX3QO|8QABWJ9 16590_ Field strength at 27. 16591_ Field strength at 3. 16592_ Stasis field depleted. Map ----- +----------------------------------------------------+ | ?????????????????????????????????????????????????? | | ?????????????????????????????????????????????????? | | ?????????????????????????????????????????????????? | | ?????????????????????????????????????????????????? | | ?????????????????????????????????????????????????? | | ?????????????????????????????????????????????????? | | ?????????????????????????????????????????????????? | | ?????????????????????????????????????????????????? | | ?????????????????????????????????????????????????? | | ?????????????????????????????????????????????????? | | ?????????????????????????????????????? ???????? | | ?????????????????????????????????????? #??? ?? | | ?????????????????????????????????????# #? | | ?????????????????????????????????????# # | | ?????????????????????????????????????# # % | | ?????????????????????????????????????# # | | ?????????????????????????????????????# # !! | | ?????????????????????????????????????# # !!^ | | ?????????????????????????????????????# # ! | | ??????????????????###????????????????# # | | ??????????????????# ???????????????# # | | ??????????????????# ??????????????# # ? | | ???????????#+###### ###############A ###/### | | ?????????? k s t g h | | ?????????? ss g g | | ???????????" sk@ ^ g g | | ???????????" b g !! | | ???????????" ^ k g == | | ??????????? ##########+######################## | | ???????????????????????? ???????????????????????? | | ??????????????????????? ???????????????????????? | | ?????????????????????? ????????????????????????# | | ????????????????????? ????????????????????????# | | ???????????????????? ?????????????????????????# | | ???????????????????# ??????????????????????????# | | ???????????????????? ???????????????????????????# | | ????????????????????????????????????????????????# | | ????????????????????????????????????????????????## | | ?????????????????????????????????????????????????? | | ?????????????????????????????????????????????????? | | ?????????????????????????????????????????????????? | | ?????????????????????????????????????????????????? | | ?????????????????????????????????????????????????? | | ?????????????????????????????????????????????????? | | ?????????????????????????????????????????????????? | | ?????????????????????????????????????????????????? | | ?????????????????????????????????????????????????< | | ?????????????????????????????????????????????????? | | ?????????????????????????????????????????????????? | | ?????????????????????????????????????????????????? | +----------------------------------------------------+ Best States ------------- Heat Dissipation 86 Energy Generation 39 Energy Capacity 565 Matter Stores 300 Matter Capacity 300 Sight Range 22 Robot Scan Range 15 Terrain Scan Density 10 Jamming Range 12 Armor Coverage 375 Propulsion Shielding 66 Utility Shielding 66 Evasion (%) 55 Targeting Accuracy 8 Target Analysis 6 Recoil Reduction 4 Item Schematics ----------------- Hcp. Storage Unit | -8/Materials | Hacked Combat Drone Bay | -7/Data Miner | Free Lgt. Regenerative Plating | -7/Data Miner | Free Cld. Aerolev Unit | -7/Data Miner | Free Exp. Targeting Computer | -7/Data Miner | Free Field Propulsion Drive | -7/Data Miner | Free Imp. Heavy Machine Gun | -7/Data Miner | Free Recoil Nullifier | -7/Data Miner | Free Adv. Plasma Cannon | -7/Data Miner | Free Lgt. Angular Momentum Engine | -7/Data Miner | Free Imp. Arc Projector | -7/Data Miner | Free Dispersion Rifle | -7/Data Miner | Free Robot Schematics ------------------ A-15 Conveyor | -7/Data Miner | Free O-24 Administrator | -7/Data Miner | Free S-27 Virus | -7/Data Miner | Free G-50 Soldier | -7/Data Miner | Free B-48 Gladiator | -7/Data Miner | Free Fabricated ------------ Hcp. Storage Unit | x1 | -7/Factory Alien Tech Used ----------------- None Achievements -------------- None Challenges ------------ None Game ------ Seed CorruptionTractorManipulator Manual? 0 Play Time 02:11:05 Cumulative 140.0 hours Start 2025.03.04 @ 00:27:30 End 2025.03.04 @ 02:37:36 Sessions 1 Manual Loads 0 Difficulty Rogue Special Mode None Game No. 92 Rogue 92 Adventurer 0 Explorer 0 Win Type - Total 11 Types 11/0/0/0/0/0/0/0/0 Lore% 32 Gallery% 49 Achievement% 48 Wizard Run 0 Options --------- Layout 1 ASCII 0 Keyboard 0 Movement Arrows Keybinds 0 Fullscreen 2 Font 24/Terminus Map View 50x35 Zoom Use 0% Tactical HUD 1 Map Filters NONE Filters NONE Steam 0 RUN: 27107ba8-0eaf-4ed7-94dc-463a62057ea1